Workbook

Sheet Blank Exercise
A2: Assumptions
B3: Cash Flow | F3: 100
B4: Growth | F4: 0.2
B5: Interest Rate | F5: 0.2
B6: Initial Debt | F6: 600
B7: Opening Balance | F7: TRUE
A9: Method 1: Iteration Button
B11: Debt Schedule
C12: Opening Balance | G12: =F14 -> 600 | H12: =G14 -> 600 | I12: 600 | J12: 600 | K12: 600 | L12: 600 | M12: 600 | N12: 600 | O12: 600 | P12: 600
C13: Less: Repayment from Sweep | G13: =G22 -> 0 | H13: =H22 -> 0 | I13: 0 | J13: 0 | K13: 0 | L13: 0 | M13: 0 | N13: 0 | O13: 0 | P13: 0
C14: Closing Balance | F14: =F6 -> 600 | G14: =G12-G13 -> 600 | H14: =H12-H13 -> 600 | I14: 600 | J14: 600 | K14: 600 | L14: 600 | M14: 600 | N14: 600 | O14: 600 | P14: 600
C16: Interest Expense on Average Balance | G16: =IF($F$7,G12*$F$5,AVERAGE(G14,G12)*$F$5) -> 120 | H16: =IF($F$7,H12*$F$5,AVERAGE(H14,H12)*$F$5) -> 120 | I16: 120 | J16: 120 | K16: 120 | L16: 120 | M16: 120 | N16: 120 | O16: 120 | P16: 120
B18: Cash Flow Statement
C19: Cash Flow | G19: =$F$3 -> 100 | H19: =G19*(1+$F$4) -> 120 | I19: =H19*(1+$F$4) -> 144 | J19: =I19*(1+$F$4) -> 172.8 | K19: =J19*(1+$F$4) -> 207.36 | L19: =K19*(1+$F$4) -> 248.832 | M19: =L19*(1+$F$4) -> 298.5984 | N19: =M19*(1+$F$4) -> 358.31808 | O19: =N19*(1+$F$4) -> 429.981696 | P19: =O19*(1+$F$4) -> 515.9780352
C20: Less: Interest Expense | G20: =G16 -> 120 | H20: =H16 -> 120 | I20: 120 | J20: 120 | K20: 120 | L20: 120 | M20: 120 | N20: 120 | O20: 120 | P20: 120
C21: Cash Flow After Interest | G21: =G19-G20 -> -20 | H21: =H19-H20 -> 0 | I21: 24 | J21: 52.8 | K21: 87.36 | L21: 128.832 | M21: 178.5984 | N21: 238.31808 | O21: 309.981696 | P21: 395.9780352
C22: Less: Repayments
C23: Equity Cash Flow | G23: =G21-G22 -> -20 | H23: =H21-H22 -> 0 | I23: 24 | J23: 52.8 | K23: 87.36 | L23: 128.832 | M23: 178.5984 | N23: 238.31808 | O23: 309.981696 | P23: 395.9780352
A26: Method 2: Horrible Copy and Paste
B28: Debt Schedule
C29: Opening Balance | G29: =F31 -> 600 | H29: =G31 -> 500 | I29: 380 | J29: 236 | K29: 63.2 | L29: 0 | M29: 0 | N29: 0 | O29: 0 | P29: 0
C30: Less: Repayment from Sweep | G30: =G41 -> 100 | H30: =H41 -> 120 | I30: 144 | J30: 172.8 | K30: 63.2 | L30: 0 | M30: 0 | N30: 0 | O30: 0 | P30: 0
C31: Closing Balance | F31: =F6 -> 600 | G31: =G29-G30 -> 500 | H31: =H29-H30 -> 380 | I31: 236 | J31: 63.2 | K31: 0 | L31: 0 | M31: 0 | N31: 0 | O31: 0 | P31: 0
C33: Computed Interest Expense | G33: =AVERAGE(G31,G29)*$F$5 -> 110 | H33: =AVERAGE(H31,H29)*$F$5 -> 88 | I33: 61.6 | J33: 29.92 | K33: 6.32 | L33: 0 | M33: 0 | N33: 0 | O33: 0 | P33: 0 | Q33: computed
C34: Fixed Interest Expense | Q34: fixed
C35: Difference
B37: Cash Flow Statement
C38: Cash Flow | G38: =$F$3 -> 100 | H38: =G38*(1+$F$4) -> 120 | I38: =H38*(1+$F$4) -> 144 | J38: =I38*(1+$F$4) -> 172.8 | K38: =J38*(1+$F$4) -> 207.36 | L38: =K38*(1+$F$4) -> 248.832 | M38: =L38*(1+$F$4) -> 298.5984 | N38: =M38*(1+$F$4) -> 358.31808 | O38: =N38*(1+$F$4) -> 429.981696 | P38: =O38*(1+$F$4) -> 515.9780352
C39: Less: Interest Expense | G39: =G34 -> 0 | H39: =H34 -> 0 | I39: 0 | J39: 0 | K39: 0 | L39: 0 | M39: 0 | N39: 0 | O39: 0 | P39: 0
C40: Cash Flow After Interest | G40: =G38-G39 -> 100 | H40: =H38-H39 -> 120 | I40: 144 | J40: 172.8 | K40: 207.36 | L40: 248.832 | M40: 298.5984 | N40: 358.31808 | O40: 429.981696 | P40: 515.9780352
C41: Less: Repayments | G41: =MIN(G40,G29) -> 100 | H41: =MIN(H40,H29) -> 120 | I41: =MIN(I40,I29) -> 144 | J41: =MIN(J40,J29) -> 172.8 | K41: =MIN(K40,K29) -> 63.2 | L41: =MIN(L40,L29) -> 0 | M41: =MIN(M40,M29) -> 0 | N41: =MIN(N40,N29) -> 0 | O41: =MIN(O40,O29) -> 0 | P41: =MIN(P40,P29) -> 0
C42: Equity Cash Flow | G42: =G40-G41 -> 0 | H42: =H40-H41 -> 0 | I42: 0 | J42: 0 | K42: 144.16 | L42: 248.832 | M42: 298.5984 | N42: 358.31808 | O42: 429.981696 | P42: 515.9780352
A44: Method 3: Function Method
B46: Debt Schedule
C47: Opening Balance | G47: =F49 -> 600 | H47: =G49 -> 500 | I47: 380 | J47: 236 | K47: 63.2 | L47: 0 | M47: 0 | N47: 0 | O47: 0 | P47: 0
C48: Less: Repayment from Sweep | G48: =G58 -> 100 | H48: =H58 -> 120 | I48: 144 | J48: 172.8 | K48: 63.2 | L48: 0 | M48: 0 | N48: 0 | O48: 0 | P48: 0
C49: Closing Balance | F49: =F14 -> 600 | G49: =G47-G48 -> 500 | H49: =H47-H48 -> 380 | I49: 236 | J49: 63.2 | K49: 0 | L49: 0 | M49: 0 | N49: 0 | O49: 0 | P49: 0
C51: Interest Expense on Average Balance
C52: Check | G52: =AVERAGE(G49,G47)*$F$5 -> 110 | H52: =AVERAGE(H49,H47)*$F$5 -> 88 | I52: =AVERAGE(I49,I47)*$F$5 -> 61.6 | J52: =AVERAGE(J49,J47)*$F$5 -> 29.92 | K52: 6.32 | L52: 0 | M52: 0 | N52: 0 | O52: 0 | P52: 0
B54: Cash Flow Statement
C55: Cash Flow | G55: =$F$3 -> 100 | H55: =G55*(1+$F$4) -> 120 | I55: =H55*(1+$F$4) -> 144 | J55: =I55*(1+$F$4) -> 172.8 | K55: =J55*(1+$F$4) -> 207.36 | L55: =K55*(1+$F$4) -> 248.832 | M55: =L55*(1+$F$4) -> 298.5984 | N55: =M55*(1+$F$4) -> 358.31808 | O55: =N55*(1+$F$4) -> 429.981696 | P55: =O55*(1+$F$4) -> 515.9780352
C56: Less: Interest Expense | G56: =G51 -> 0 | H56: =H51 -> 0 | I56: =I51 -> 0 | J56: =J51 -> 0 | K56: =K51 -> 0 | L56: =L51 -> 0 | M56: =M51 -> 0 | N56: =N51 -> 0 | O56: =O51 -> 0 | P56: =P51 -> 0
C57: Cash Flow After Interest | G57: =G55-G56 -> 100 | H57: =H55-H56 -> 120 | I57: 144 | J57: 172.8 | K57: 207.36 | L57: 248.832 | M57: 298.5984 | N57: 358.31808 | O57: 429.981696 | P57: 515.9780352
C58: Less: Repayments | G58: =MIN(G57,G47) -> 100 | H58: =MIN(H57,H47) -> 120 | I58: 144 | J58: 172.8 | K58: 63.2 | L58: 0 | M58: =MIN(M57,M47) -> 0 | N58: =MIN(N57,N47) -> 0 | O58: 0 | P58: 0
C59: Equity Cash Flow | G59: =G57-G58 -> 0 | H59: =H57-H58 -> 0 | I59: 0 | J59: 0 | K59: 144.16 | L59: 248.832 | M59: 298.5984 | N59: 358.31808 | O59: 429.981696 | P59: 515.9780352

Sheet Completed Basic Exercise
A2: Assumptions
B3: Cash Flow | F3: 100
B4: Growth | F4: 0.2
B5: Interest Rate | F5: 0.2
B6: Initial Debt | F6: 600
B7: Opening Balance | F7: TRUE
A9: Method 1: Iteration Button
B11: Debt Schedule
C12: Opening Balance | G12: =F14 -> 600 | H12: =G14 -> 620 | I12: 624 | J12: 604.8 | K12: 552.96 | L12: 456.192 | M12: 298.5984 | N12: 59.71968 | O12: 0 | P12: 0
C13: Less: Repayment from Sweep | G13: =G22 -> -20 | H13: =H22 -> -4 | I13: 19.2 | J13: 51.84 | K13: 96.768 | L13: 157.5936 | M13: 238.87872 | N13: 59.71968 | O13: 0 | P13: 0
C14: Closing Balance | F14: =F6 -> 600 | G14: =G12-G13 -> 620 | H14: =H12-H13 -> 624 | I14: 604.8 | J14: 552.96 | K14: 456.192 | L14: 298.5984 | M14: 59.71968 | N14: 0 | O14: 0 | P14: 0
C16: Interest Expense on Average Balance | G16: =IF($F$7,G12*$F$5,AVERAGE(G14,G12)*$F$5) -> 120 | H16: =IF($F$7,H12*$F$5,AVERAGE(H14,H12)*$F$5) -> 124 | I16: 124.8 | J16: 120.96 | K16: 110.592 | L16: 91.2384 | M16: 59.71968 | N16: 11.943936 | O16: 0 | P16: 0
B18: Cash Flow Statement
C19: Cash Flow | G19: =$F$3 -> 100 | H19: =G19*(1+$F$4) -> 120 | I19: =H19*(1+$F$4) -> 144 | J19: =I19*(1+$F$4) -> 172.8 | K19: =J19*(1+$F$4) -> 207.36 | L19: =K19*(1+$F$4) -> 248.832 | M19: =L19*(1+$F$4) -> 298.5984 | N19: =M19*(1+$F$4) -> 358.31808 | O19: =N19*(1+$F$4) -> 429.981696 | P19: =O19*(1+$F$4) -> 515.9780352
C20: Less: Interest Expense | G20: =G16 -> 120 | H20: =H16 -> 124 | I20: 124.8 | J20: 120.96 | K20: 110.592 | L20: 91.2384 | M20: 59.71968 | N20: 11.943936 | O20: 0 | P20: 0
C21: Cash Flow After Interest | G21: =G19-G20 -> -20 | H21: =H19-H20 -> -4 | I21: 19.2 | J21: 51.84 | K21: 96.768 | L21: 157.5936 | M21: 238.87872 | N21: 346.374144 | O21: 429.981696 | P21: 515.9780352
C22: Less: Repayments | G22: =MIN(G21,G12) -> -20 | H22: =MIN(H21,H12) -> -4 | I22: 19.2 | J22: 51.84 | K22: 96.768 | L22: 157.5936 | M22: 238.87872 | N22: 59.71968 | O22: 0 | P22: 0
C23: Equity Cash Flow | G23: =G21-G22 -> 0 | H23: =H21-H22 -> 0 | I23: 0 | J23: 0 | K23: 0 | L23: 0 | M23: 0 | N23: 286.654464 | O23: 429.981696 | P23: 515.9780352
A26: Method 2: Horrible Copy and Paste
B28: Debt Schedule
C29: Opening Balance | G29: =F31 -> 600 | H29: =G31 -> 622.2222222 | I29: 627.1604938 | J29: 606.5294925 | K29: 549.3138241 | L29: 440.9835628 | M29: 262.4999101 | N29: 0 | O29: 0 | P29: 0
C30: Less: Repayment from Sweep | G30: =G41 -> -22.22222222 | H30: =H41 -> -4.938271605 | I30: 20.63100137 | J30: 57.21566834 | K30: 108.3302613 | L30: 178.4836527 | M30: 262.4999101 | N30: 0 | O30: 0 | P30: 0
C31: Closing Balance | F31: =F6 -> 600 | G31: =G29-G30 -> 622.2222222 | H31: =H29-H30 -> 627.1604938 | I31: =I29-I30 -> 606.5294925 | J31: =J29-J30 -> 549.3138241 | K31: =K29-K30 -> 440.9835628 | L31: =L29-L30 -> 262.4999101 | M31: =M29-M30 -> 0 | N31: =N29-N30 -> 0 | O31: =O29-O30 -> 0 | P31: =P29-P30 -> 0
C33: Computed Interest Expense | G33: =AVERAGE(G31,G29)*$F$5 -> 122.2222222 | H33: =AVERAGE(H31,H29)*$F$5 -> 124.9382716 | I33: 123.3689986 | J33: 115.5843317 | K33: 99.02973869 | L33: 70.34834729 | M33: 26.24999101 | N33: 0 | O33: 0 | P33: 0 | Q33: computed
C34: Fixed Interest Expense | G34: 122.2222222 | H34: 124.9382716 | I34: 123.3689986 | J34: 115.5843317 | K34: 99.02973869 | L34: 70.34834729 | M34: 26.24999101 | N34: 0 | O34: 0 | P34: 0 | Q34: fixed
C35: Difference | E35: =SUM(G35:P35) -> 0 | G35: =G33-G34 -> 0 | H35: =H33-H34 -> 0 | I35: 0 | J35: 0 | K35: 0 | L35: 0 | M35: 0 | N35: 0 | O35: 0 | P35: 0
B37: Cash Flow Statement
C38: Cash Flow | G38: =$F$3 -> 100 | H38: =G38*(1+$F$4) -> 120 | I38: =H38*(1+$F$4) -> 144 | J38: =I38*(1+$F$4) -> 172.8 | K38: =J38*(1+$F$4) -> 207.36 | L38: =K38*(1+$F$4) -> 248.832 | M38: =L38*(1+$F$4) -> 298.5984 | N38: =M38*(1+$F$4) -> 358.31808 | O38: =N38*(1+$F$4) -> 429.981696 | P38: =O38*(1+$F$4) -> 515.9780352
C39: Less: Interest Expense | G39: =G34 -> 122.2222222 | H39: =H34 -> 124.9382716 | I39: 123.3689986 | J39: 115.5843317 | K39: 99.02973869 | L39: 70.34834729 | M39: 26.24999101 | N39: 0 | O39: 0 | P39: 0
C40: Cash Flow After Interest | G40: =G38-G39 -> -22.22222222 | H40: =H38-H39 -> -4.938271605 | I40: =I38-I39 -> 20.63100137 | J40: =J38-J39 -> 57.21566834 | K40: =K38-K39 -> 108.3302613 | L40: =L38-L39 -> 178.4836527 | M40: =M38-M39 -> 272.348409 | N40: =N38-N39 -> 358.31808 | O40: =O38-O39 -> 429.981696 | P40: =P38-P39 -> 515.9780352
C41: Less: Repayments | G41: =MIN(G40,G29) -> -22.22222222 | H41: =MIN(H40,H29) -> -4.938271605 | I41: =MIN(I40,I29) -> 20.63100137 | J41: =MIN(J40,J29) -> 57.21566834 | K41: =MIN(K40,K29) -> 108.3302613 | L41: =MIN(L40,L29) -> 178.4836527 | M41: =MIN(M40,M29) -> 262.4999101 | N41: =MIN(N40,N29) -> 0 | O41: =MIN(O40,O29) -> 0 | P41: =MIN(P40,P29) -> 0
C42: Equity Cash Flow | G42: =G40-G41 -> 0 | H42: =H40-H41 -> 0 | I42: =I40-I41 -> 0 | J42: =J40-J41 -> 0 | K42: =K40-K41 -> 0 | L42: =L40-L41 -> 0 | M42: =M40-M41 -> 9.848498897 | N42: =N40-N41 -> 358.31808 | O42: =O40-O41 -> 429.981696 | P42: =P40-P41 -> 515.9780352
A44: Method 3: Function Method
B46: Debt Schedule
C47: Opening Balance | G47: =F49 -> 600 | H47: =G49 -> 622.2222222 | I47: 627.1604938 | J47: 606.5294925 | K47: 549.3138241 | L47: 440.9835628 | M47: 262.4999101 | N47: 0 | O47: 0 | P47: 0
C48: Less: Repayment from Sweep | G48: =G58 -> -22.22222222 | H48: =H58 -> -4.938271605 | I48: 20.63100137 | J48: 57.21566834 | K48: 108.3302613 | L48: 178.4836527 | M48: 262.4999101 | N48: 0 | O48: 0 | P48: 0
C49: Closing Balance | F49: =F14 -> 600 | G49: =G47-G48 -> 622.2222222 | H49: =H47-H48 -> 627.1604938 | I49: =I47-I48 -> 606.5294925 | J49: =J47-J48 -> 549.3138241 | K49: =K47-K48 -> 440.9835628 | L49: =L47-L48 -> 262.4999101 | M49: =M47-M48 -> 0 | N49: =N47-N48 -> 0 | O49: =O47-O48 -> 0 | P49: =P47-P48 -> 0
C51: Interest Expense on Average Balance | G51: =average_interest($F$5,G55,G47) -> 122.2222222 | H51: =average_interest($F$5,H55,H47) -> 124.9382716 | I51: 123.3689986 | J51: 115.5843317 | K51: 99.02973869 | L51: 70.34834729 | M51: 26.24999101 | N51: 0 | O51: 0 | P51: 0
C52: Check | G52: =AVERAGE(G49,G47)*$F$5 -> 122.2222222 | H52: =AVERAGE(H49,H47)*$F$5 -> 124.9382716 | I52: =AVERAGE(I49,I47)*$F$5 -> 123.3689986 | J52: =AVERAGE(J49,J47)*$F$5 -> 115.5843317 | K52: 99.02973869 | L52: 70.34834729 | M52: 26.24999101 | N52: 0 | O52: 0 | P52: 0
B54: Cash Flow Statement
C55: Cash Flow | G55: =$F$3 -> 100 | H55: =G55*(1+$F$4) -> 120 | I55: =H55*(1+$F$4) -> 144 | J55: =I55*(1+$F$4) -> 172.8 | K55: =J55*(1+$F$4) -> 207.36 | L55: =K55*(1+$F$4) -> 248.832 | M55: =L55*(1+$F$4) -> 298.5984 | N55: =M55*(1+$F$4) -> 358.31808 | O55: =N55*(1+$F$4) -> 429.981696 | P55: =O55*(1+$F$4) -> 515.9780352
C56: Less: Interest Expense | G56: =G51 -> 122.2222222 | H56: =H51 -> 124.9382716 | I56: =I51 -> 123.3689986 | J56: =J51 -> 115.5843317 | K56: =K51 -> 99.02973869 | L56: =L51 -> 70.34834729 | M56: =M51 -> 26.24999101 | N56: =N51 -> 0 | O56: =O51 -> 0 | P56: =P51 -> 0
C57: Cash Flow After Interest | G57: =G55-G56 -> -22.22222222 | H57: =H55-H56 -> -4.938271605 | I57: =I55-I56 -> 20.63100137 | J57: =J55-J56 -> 57.21566834 | K57: =K55-K56 -> 108.3302613 | L57: =L55-L56 -> 178.4836527 | M57: =M55-M56 -> 272.348409 | N57: =N55-N56 -> 358.31808 | O57: =O55-O56 -> 429.981696 | P57: =P55-P56 -> 515.9780352
C58: Less: Repayments | G58: =MIN(G57,G47) -> -22.22222222 | H58: =MIN(H57,H47) -> -4.938271605 | I58: =MIN(I57,I47) -> 20.63100137 | J58: =MIN(J57,J47) -> 57.21566834 | K58: =MIN(K57,K47) -> 108.3302613 | L58: =MIN(L57,L47) -> 178.4836527 | M58: =MIN(M57,M47) -> 262.4999101 | N58: =MIN(N57,N47) -> 0 | O58: =MIN(O57,O47) -> 0 | P58: =MIN(P57,P47) -> 0
C59: Equity Cash Flow | G59: =G57-G58 -> 0 | H59: =H57-H58 -> 0 | I59: =I57-I58 -> 0 | J59: =J57-J58 -> 0 | K59: =K57-K58 -> 0 | L59: =L57-L58 -> 0 | M59: =M57-M58 -> 9.848498897 | N59: =N57-N58 -> 358.31808 | O59: =O57-O58 -> 429.981696 | P59: =P57-P58 -> 515.9780352

Sheet Sweep with Taxes Blank
A2: Assumptions
B3: Cash Flow | F3: 100
B4: Growth | F4: 0.2
B5: Interest Rate | F5: 0.2
B6: Initial Debt | F6: 600
B7: Opening Balance | F7: TRUE
B8: Income Tax Rate | F8: 0.3
A10: Resolution of Circular Refereces with Function
B12: Debt Schedule
C13: Opening Balance | G13: =F15 -> 600 | H13: =G15 -> 530 | I13: 446 | J13: 345.2 | K13: 224.24 | L13: 79.088 | M13: 0 | N13: 0 | O13: 0 | P13: 0
C14: Less: Repayment from Sweep | G14: =G34 -> 70 | H14: =H34 -> 84 | I14: 100.8 | J14: 120.96 | K14: 145.152 | L14: 79.088 | M14: 0 | N14: 0 | O14: 0 | P14: 0
C15: Closing Balance | F15: =F6 -> 600 | G15: =G13-G14 -> 530 | H15: =H13-H14 -> 446 | I15: 345.2 | J15: 224.24 | K15: 79.088 | L15: 0 | M15: 0 | N15: 0 | O15: 0 | P15: 0
C17: Interest Expense on Average Balance
B20: Cash Flow Statement
C21: Cash Flow | G21: =$F$3 -> 100 | H21: =G21*(1+$F$4) -> 120 | I21: =H21*(1+$F$4) -> 144 | J21: =I21*(1+$F$4) -> 172.8 | K21: =J21*(1+$F$4) -> 207.36 | L21: =K21*(1+$F$4) -> 248.832 | M21: =L21*(1+$F$4) -> 298.5984 | N21: =M21*(1+$F$4) -> 358.31808 | O21: =N21*(1+$F$4) -> 429.981696 | P21: =O21*(1+$F$4) -> 515.9780352
C22: Less: Interest Expense | G22: =G17 -> 0 | H22: =H17 -> 0 | I22: =I17 -> 0 | J22: =J17 -> 0 | K22: =K17 -> 0 | L22: =L17 -> 0 | M22: =M17 -> 0 | N22: =N17 -> 0 | O22: =O17 -> 0 | P22: =P17 -> 0
C23: EBT before NOL | G23: =G21-G22 -> 100 | H23: =H21-H22 -> 120 | I23: 144 | J23: 172.8 | K23: 207.36 | L23: 248.832 | M23: 298.5984 | N23: 358.31808 | O23: 429.981696 | P23: 515.9780352
C25: NOL Balance
C26: Opening Balance | G26: =F29 -> 0 | H26: =G29 -> 0 | I26: 0 | J26: 0 | K26: 0 | L26: 0 | M26: 0 | N26: 0 | O26: 0 | P26: 0
C27: Add: NOL Created from Losses | G27: =MAX(-G23,0) -> 0 | H27: =MAX(-H23,0) -> 0 | I27: 0 | J27: 0 | K27: 0 | L27: 0 | M27: 0 | N27: 0 | O27: 0 | P27: 0
C28: Less: NOL Used from Postivie Income | G28: =MIN(G26,MAX(G23,0)) -> 0 | H28: =MIN(H26,MAX(H23,0)) -> 0 | I28: 0 | J28: 0 | K28: 0 | L28: 0 | M28: 0 | N28: 0 | O28: 0 | P28: 0
C29: Closing NOL Balance | G29: =G26+G27-G28 -> 0 | H29: =H26+H27-H28 -> 0 | I29: 0 | J29: 0 | K29: 0 | L29: 0 | M29: 0 | N29: 0 | O29: 0 | P29: 0
C31: Adjusted EBT | G31: =G23+G27-G28 -> 100 | H31: =H23+H27-H28 -> 120 | I31: =I23+I27-I28 -> 144 | J31: 172.8 | K31: 207.36 | L31: 248.832 | M31: 298.5984 | N31: 358.31808 | O31: 429.981696 | P31: 515.9780352
C32: Less: Taxes | G32: =G31*$F$8 -> 30 | H32: =H31*$F$8 -> 36 | I32: =I31*$F$8 -> 43.2 | J32: 51.84 | K32: 62.208 | L32: 74.6496 | M32: 89.57952 | N32: 107.495424 | O32: 128.9945088 | P32: 154.7934106
C33: Cash Flow After Interest | G33: =G21-G22-G32 -> 70 | H33: =H21-H22-H32 -> 84 | I33: 100.8 | J33: 120.96 | K33: 145.152 | L33: 174.1824 | M33: 209.01888 | N33: 250.822656 | O33: 300.9871872 | P33: 361.1846246
C34: Less: Repayments | G34: =MIN(G33,G13) -> 70 | H34: =MIN(H33,H13) -> 84 | I34: 100.8 | J34: 120.96 | K34: 145.152 | L34: 79.088 | M34: 0 | N34: 0 | O34: 0 | P34: 0
C35: Equity Cash Flow | G35: =G33-G34 -> 0 | H35: =H33-H34 -> 0 | I35: 0 | J35: 0 | K35: 0 | L35: 95.0944 | M35: 209.01888 | N35: 250.822656 | O35: 300.9871872 | P35: 361.1846246

Sheet Sweep with Taxes Completed
A2: Assumptions
B3: Cash Flow | F3: 100
B4: Growth | F4: 0.2
B5: Interest Rate | F5: 0.2
B6: Initial Debt | F6: 600
B7: Opening Balance | F7: TRUE
B8: Income Tax Rate | F8: 0.3
A10: Resolution of Circular Refereces with Function
B12: Debt Schedule
C13: Opening Balance | G13: =F15 -> 600 | H13: =G15 -> 622.2222222 | I13: 627.1604938 | J13: 606.5294925 | K13: 565.6642034 | L13: 494.7405351 | M13: 381.9247017 | N13: 214.667259 | O13: 0 | P13: 0
C14: Less: Repayment from Sweep | G14: =G34 -> -22.22222222 | H14: =H34 -> -4.938271605 | I14: 20.63100137 | J14: 40.86528902 | K14: 70.9236683 | L14: 112.8158334 | M14: 167.2574428 | N14: 214.667259 | O14: 0 | P14: 0
C15: Closing Balance | F15: =F6 -> 600 | G15: =G13-G14 -> 622.2222222 | H15: =H13-H14 -> 627.1604938 | I15: 606.5294925 | J15: 565.6642034 | K15: 494.7405351 | L15: 381.9247017 | M15: 214.667259 | N15: 0 | O15: 0 | P15: 0
C17: Interest Expense on Average Balance | G17: =average_interest_taxes($F$5,G21,G13,$F$8,G26) -> 122.2222222 | H17: =average_interest_taxes($F$5,H21,H13,$F$8,H26) -> 124.9382716 | I17: 123.3689986 | J17: 117.2193696 | K17: 106.0404739 | L17: 87.66652368 | M17: 59.65919607 | N17: 21.4667259 | O17: 0 | P17: 0
C18: Check | G18: =AVERAGE(G15,G13)*$F$5 -> 122.2222222 | H18: =AVERAGE(H15,H13)*$F$5 -> 124.9382716 | I18: 123.3689986 | J18: 117.2193696 | K18: 106.0404739 | L18: 87.66652368 | M18: 59.65919607 | N18: 21.4667259 | O18: 0 | P18: 0
B20: Cash Flow Statement
C21: Cash Flow | G21: =$F$3 -> 100 | H21: =G21*(1+$F$4) -> 120 | I21: =H21*(1+$F$4) -> 144 | J21: =I21*(1+$F$4) -> 172.8 | K21: =J21*(1+$F$4) -> 207.36 | L21: =K21*(1+$F$4) -> 248.832 | M21: =L21*(1+$F$4) -> 298.5984 | N21: =M21*(1+$F$4) -> 358.31808 | O21: =N21*(1+$F$4) -> 429.981696 | P21: =O21*(1+$F$4) -> 515.9780352
C22: Less: Interest Expense | G22: =G17 -> 122.2222222 | H22: =H17 -> 124.9382716 | I22: =I17 -> 123.3689986 | J22: =J17 -> 117.2193696 | K22: =K17 -> 106.0404739 | L22: =L17 -> 87.66652368 | M22: =M17 -> 59.65919607 | N22: =N17 -> 21.4667259 | O22: =O17 -> 0 | P22: =P17 -> 0
C23: EBT before NOL | G23: =G21-G22 -> -22.22222222 | H23: =H21-H22 -> -4.938271605 | I23: 20.63100137 | J23: 55.58063041 | K23: 101.3195261 | L23: 161.1654763 | M23: 238.9392039 | N23: 336.8513541 | O23: 429.981696 | P23: 515.9780352
C25: NOL Balance
C26: Opening Balance | G26: =F29 -> 0 | H26: =G29 -> 22.22222222 | I26: 27.16049383 | J26: 6.529492455 | K26: 0 | L26: 0 | M26: 0 | N26: 0 | O26: 0 | P26: 0
C27: Add: NOL Created from Losses | G27: =MAX(-G23,0) -> 22.22222222 | H27: =MAX(-H23,0) -> 4.938271605 | I27: 0 | J27: 0 | K27: 0 | L27: 0 | M27: 0 | N27: 0 | O27: 0 | P27: 0
C28: Less: NOL Used from Postivie Income | G28: =MIN(G26,MAX(G23,0)) -> 0 | H28: =MIN(H26,MAX(H23,0)) -> 0 | I28: 20.63100137 | J28: 6.529492455 | K28: 0 | L28: 0 | M28: 0 | N28: 0 | O28: 0 | P28: 0
C29: Closing NOL Balance | G29: =G26+G27-G28 -> 22.22222222 | H29: =H26+H27-H28 -> 27.16049383 | I29: 6.529492455 | J29: 0 | K29: 0 | L29: 0 | M29: 0 | N29: 0 | O29: 0 | P29: 0
C31: Adjusted EBT | G31: =G23+G27-G28 -> 0 | H31: =H23+H27-H28 -> 0 | I31: =I23+I27-I28 -> 0 | J31: 49.05113796 | K31: 101.3195261 | L31: 161.1654763 | M31: 238.9392039 | N31: 336.8513541 | O31: 429.981696 | P31: 515.9780352
C32: Less: Taxes | G32: =G31*$F$8 -> 0 | H32: =H31*$F$8 -> 0 | I32: =I31*$F$8 -> 0 | J32: 14.71534139 | K32: 30.39585784 | L32: 48.34964289 | M32: 71.68176118 | N32: 101.0554062 | O32: 128.9945088 | P32: 154.7934106
C33: Cash Flow After Interest | G33: =G21-G22-G32 -> -22.22222222 | H33: =H21-H22-H32 -> -4.938271605 | I33: 20.63100137 | J33: 40.86528902 | K33: 70.9236683 | L33: 112.8158334 | M33: 167.2574428 | N33: 235.7959479 | O33: 300.9871872 | P33: 361.1846246
C34: Less: Repayments | G34: =MIN(G33,G13) -> -22.22222222 | H34: =MIN(H33,H13) -> -4.938271605 | I34: 20.63100137 | J34: 40.86528902 | K34: 70.9236683 | L34: 112.8158334 | M34: 167.2574428 | N34: 214.667259 | O34: 0 | P34: 0
C35: Equity Cash Flow | G35: =G33-G34 -> 0 | H35: =H33-H34 -> 0 | I35: 0 | J35: 0 | K35: 0 | L35: 0 | M35: 0 | N35: 21.12868892 | O35: 300.9871872 | P35: 361.1846246

Sheet Sheet2

Sheet Sheet3
